lending/lending_fUSD_20260330
["ID","MTS","AMOUNT","RATE_DAILY","PERIOD"]
[419097706,1774878638790,-847.834,0.00015371,2]
[419097708,1774878638799,-1600.0,0.00015402,2]
[419097709,1774878638808,-164.63,0.00015402,2]
[419097710,1774878638818,-264.01,0.00015409,2]
[419097712,1774878638827,-264.01750777,0.00015409,2]
[419097713,1774878638836,-1045.0,0.00015619,2]
[419097714,1774878638847,-1346.0,0.00015619,2]
[419097715,1774878638856,-3518.0,0.00015619,2]
[419097716,1774878638866,-1262.0,0.00015619,2]
[419097717,1774878638876,-925.0,0.00015619,2]
[419097718,1774878638885,-1216.0,0.00015619,2]
[419097719,1774878638896,-3766.0,0.00015619,2]
[419097720,1774878638906,-2468.0,0.00015619,2]
[419097721,1774878638915,-181.08010149,0.00015747,2]
[419097722,1774878638925,-840.0,0.00015781,2]
[419097724,1774878638935,-1000.0,0.000158,2]
[419097726,1774878638945,-1000.0,0.000158,2]
[419097728,1774878638954,-312.0,0.000158,2]
[419097730,1774878638964,-210.0,0.000158,2]
[419097733,1774878638987,-250.0,0.00015847,2]
[419097735,1774878639004,-500.0,0.00015872,2]
[419097738,1774878639018,-200.0,0.00015872,2]
[419097741,1774878639035,-5000.0,0.000159,2]
[419097743,1774878639052,-657.0206,0.000159,2]
[419097746,1774878639067,-1665.9286,0.000159,2]
[419097749,1774878639084,-270.66309858,0.000159,2]
[419097751,1774878639100,-2500.0,0.000159,2]
[419097753,1774878639115,-37910.89333687,0.000159,2]
[419097756,1774878639130,-204.62671032,0.000159,2]
[419097759,1774878639146,-500.0,0.00015973,2]
[419097761,1774878639163,-500.0,0.00015973,2]
[419097764,1774878639179,-151.0,0.00015997,2]
[419097767,1774878639197,-155.0,0.00015999,2]
[419097769,1774878639209,-500.0,0.00015999,2]
[419097772,1774878639224,-161.56590738,0.00015999,2]
[419097774,1774878639238,-500.0,0.00015999,2]
[419097777,1774878639254,-500.0,0.00015999,2]
[419097780,1774878639271,-500.0,0.00015999,2]
[419097782,1774878639286,-500.0,0.00015999,2]
[419097784,1774878639299,-500.0,0.00015999,2]
[419097787,1774878639312,-500.0,0.00015999,2]
[419097788,1774878639336,-302.88739017,0.00015999,2]
[419097789,1774878639350,-500.0,0.00015999,2]
[419097790,1774878639364,-500.0,0.00015999,2]
[419097791,1774878639379,-500.0,0.00015999,2]
[419097792,1774878639392,-500.0,0.00015999,2]
[419097793,1774878639406,-500.0,0.00015999,2]
[419097794,1774878639422,-500.0,0.00015999,2]
[419097795,1774878639436,-188.38530785,0.00015999,2]
[419097796,1774878639451,-500.0,0.00015999,2]
[419097797,1774878639465,-500.0,0.00015999,2]
[419097798,1774878639481,-310.09733473,0.00015999,2]
[419097799,1774878639495,-204.29540991,0.00015999,2]
[419097800,1774878639510,-152.61788481,0.00015999,2]
[419097801,1774878639525,-177.10779984,0.00015999,2]
[419097802,1774878639538,-7761.84024338,0.00016,2]
[419097803,1774878639582,-1011464.21404411,0.00016,2]
[419097808,1774878640862,-415.0,0.00015619,2]
[419097809,1774878640875,-306.0,0.000157,2]
[419097810,1774878640889,-375.199,0.00016,2]
[419097811,1774878640906,-1137.5,0.00016,2]
[419097812,1774878641206,-9356.27534905,0.00016,2]
[419097813,1774878641260,-3816.06822445,0.00016,2]
[419097823,1774878644902,-18210.95233118,0.00016,2]
[419097824,1774878644919,-3031.75376585,0.00016,2]
[419097825,1774878644994,-727.36423347,0.00016,2]
[419097826,1774878645007,-31712.54038067,0.00016,2]
[419097829,1774878646293,-6452.72360923,0.00016,2]
[419097830,1774878646715,-3330.22882089,0.00016,2]
[419097833,1774878720104,297.59705158,0.0001,2]
[419097835,1774878932792,-691.49,9.759e-05,2]
[419097836,1774878932817,-163.0,0.0001,3]
[419097837,1774878932843,-145.51,0.0001,3]
[419097838,1774879025278,-739.52,9.512e-05,2]
[419097839,1774879025304,-157.0,0.0001,3]
[419097840,1774879025330,-103.48,0.00010464,2]
[419097841,1774879040406,-157.0,0.0001,3]
[419097842,1774879040429,-233.0,0.00010232,2]
[419097844,1774879373638,184.75025234,0.00015999,120]
[419097845,1774879530992,-163.0,0.0001,3]
[419097846,1774879531016,-122.92752286,0.0001,3]
[419097848,1774879627117,-237.03061393,9.429e-05,2]
[419097851,1774879760084,-602.50938607,9.429e-05,2]
[419097852,1774879760105,-1122.1424,0.00010124,2]
[419097853,1774879760127,-156.39595107,0.00010132,2]
[419097854,1774879760150,-1200.0,0.00010231,2]
[419097855,1774879760172,-238.0,0.00010231,2]
[419097856,1774879760195,-300.0,0.00010231,2]
[419097857,1774879760216,-300.0,0.00010231,2]
[419097858,1774879760237,-14.24536898,0.00010231,2]
[419097859,1774879761587,-285.75463102,0.00010231,2]
[419097860,1774879761609,-500.0,0.00010232,2]
[419097861,1774879761630,-500.0,0.00010232,2]
[419097862,1774879761653,-500.0,0.00010232,2]
[419097863,1774879761675,-239.57550571,0.00010232,2]
[419097864,1774879761696,-264.0,0.00010232,2]
[419097865,1774879761718,-160.0,0.00010338,2]
[419097866,1774879761738,-2784.7147853,0.0001034,2]
[419097867,1774879761758,-187.50832204,0.00010372,2]
[419097868,1774879761779,-260.1981555,0.00010372,2]
[419097869,1774879761802,-166.66,0.00010959,2]
[419097870,1774879761823,-7141.28978269,0.00011,2]
[419097871,1774879761845,-166.66,0.00011084,2]
[419097872,1774879761865,-150.0,0.00011127,2]
[419097873,1774879761887,-5000.0,0.00011128,2]
[419097874,1774879761908,-322.17886067,0.00011128,2]
[419097875,1774879761928,-600.0,0.00011128,2]
[419097876,1774879761949,-600.0,0.00011128,2]
[419097877,1774879761969,-167.43731745,0.00011128,2]
[419097890,1774879833238,-69431.21190426,9.5e-05,3]
[419097891,1774879833248,-164.0,0.0001,3]
[419097892,1774879833258,-432.56268255,0.00011128,2]
[419097893,1774879833268,-600.0,0.00011128,2]
[419097894,1774879833279,-315.93741298,0.00011169,2]
[419097895,1774879833289,-166.66,0.0001121,2]
[419097896,1774879833299,-1200.0,0.00011247,2]
[419097897,1774879833309,-500.0,0.00011248,2]
[419097898,1774879833318,-500.0,0.00011248,2]
[419097899,1774879833328,-500.0,0.00011248,2]
[419097900,1774879833340,-500.0,0.00011248,2]
[419097901,1774879833350,-200.0,0.00011248,2]
[419097902,1774879833361,-500.0,0.00011248,2]
[419097903,1774879833371,-500.0,0.00011248,2]
[419097904,1774879833381,-500.0,0.00011248,2]
[419097905,1774879833391,-500.0,0.00011248,2]
[419097906,1774879833401,-151.0,0.00011248,2]
[419097907,1774879833410,-500.0,0.00011248,2]
[419097908,1774879833420,-151.0,0.00011248,2]
[419097909,1774879833430,-500.0,0.00011248,2]
[419097910,1774879833439,-151.0,0.00011248,2]
[419097911,1774879833451,-500.0,0.00011248,2]
[419097912,1774879833461,-151.0,0.00011248,2]
[419097913,1774879833471,-500.0,0.00011248,2]
[419097914,1774879833481,-151.0,0.00011248,2]
[419097915,1774879833491,-151.0,0.00011248,2]
[419097916,1774879833501,-151.0,0.00011248,2]
[419097917,1774879833511,-151.0,0.00011248,2]
[419097918,1774879833521,-151.0,0.00011248,2]
[419097919,1774879833531,-151.0,0.00011248,2]
[419097920,1774879833541,-151.0,0.00011248,2]
[419097921,1774879833551,-151.0,0.00011248,2]
[419097922,1774879833561,-151.0,0.00011248,2]
[419097923,1774879833571,-151.0,0.00011248,2]
[419097924,1774879833581,-151.0,0.00011248,2]
[419097925,1774879833590,-151.0,0.00011248,2]
[419097926,1774879833601,-151.0,0.00011248,2]
[419097927,1774879833611,-500.0,0.00011248,2]
[419097928,1774879833621,-151.0,0.00011248,2]
[419097929,1774879833631,-500.0,0.00011248,2]
[419097930,1774879833641,-151.0,0.00011248,2]
[419097931,1774879833650,-500.0,0.00011248,2]
[419097932,1774879833660,-151.0,0.00011248,2]
[419097933,1774879833670,-500.0,0.00011248,2]
[419097934,1774879833679,-151.0,0.00011248,2]
[419097935,1774879833689,-151.0,0.00011248,2]
[419097936,1774879833700,-151.0,0.00011248,2]
[419097937,1774879833710,-151.0,0.00011248,2]
[419097938,1774879833720,-151.0,0.00011248,2]
[419097939,1774879833730,-151.0,0.00011248,2]
[419097940,1774879833739,-151.0,0.00011248,2]
[419097941,1774879833749,-151.0,0.00011248,2]
[419097942,1774879833759,-151.0,0.00011248,2]
[419097943,1774879833769,-151.0,0.00011248,2]
[419097944,1774879833778,-151.0,0.00011248,2]
[419097945,1774879834144,-151.0,0.00011248,2]
[419097946,1774879834158,-1443.27779277,0.00011248,2]
[419097947,1774879834168,-420.0,0.00011251,2]
[419097948,1774879834178,-150.0,0.000113,2]
[419097949,1774879834187,-166.66,0.00011335,2]
[419097950,1774879834196,-1852.42,0.00011391,2]
[419097951,1774879834206,-166.66,0.0001146,2]
[419097952,1774879834215,-165.03946855,0.00011522,2]
[419097953,1774879834224,-166.66,0.00011586,2]
[419097954,1774879834235,-2000.0,0.00011697,2]
[419097955,1774879834244,-200.0,0.00011796,2]
[419097956,1774879834253,-217.98,0.00011971,2]
[419097957,1774879834262,-494.0,0.00012053,2]
[419097958,1774879834271,-388.0,0.00012077,2]
[419097959,1774879834280,-251.0,0.00012101,2]
[419097960,1774879834290,-809.18955713,0.00012119,2]
[419097961,1774879834299,-1810.0,0.00012138,2]
[419097962,1774879834308,-388.0,0.00012162,2]
[419097963,1774879834317,-600.0,0.0001224,2]
[419097964,1774879834327,-250.0,0.0001224,2]
[419097965,1774879834336,-331.72967586,0.00012459,2]
[419097966,1774879834346,-500.0,0.00012514,2]
[419097967,1774879834355,-500.0,0.00012514,2]
[419097968,1774879834364,-500.0,0.00012514,2]
[419097969,1774879834374,-500.0,0.00012514,2]
[419097970,1774879834383,-500.0,0.00012514,2]
[419097971,1774879834392,-500.0,0.00012514,2]
[419097972,1774879834402,-500.0,0.00012514,2]
[419097973,1774879834411,-500.0,0.00012514,2]
[419097974,1774879834421,-721.9,0.00012561,2]
[419097975,1774879834430,-196.6654,0.000128,7]
[419097976,1774879834440,-413.45001179,0.00012973,2]
[419097977,1774879834450,-2654.56840218,0.00012973,2]
[419097978,1774879834459,-3731.3835487,0.00012973,2]
[419097979,1774879834469,-61151.06228806,0.00013,7]
[419097980,1774879834479,-151.0,0.00013044,2]
[419097981,1774879834489,-442.54332135,0.00013045,2]
[419097982,1774879834499,-1433.878,0.00013046,2]
[419097983,1774879834508,-171.63,0.00013046,2]
[419097984,1774879834518,-660629.9831,0.00013047,2]
[419097985,1774879834528,-550.62298341,0.00013073,2]
[419097986,1774879834538,-505.73499567,0.00013073,2]
[419097987,1774879834547,-500.0,0.00013073,2]
[419097988,1774879834557,-2000.0,0.00013159,2]
[419097989,1774879834567,-2654.56840215,0.00013298,2]
[419097990,1774879834577,-365.41137655,0.00013313,2]
[419097991,1774879834587,-413.45001173,0.00013391,2]
[419097992,1774879834596,-1458.30705843,0.00013412,2]
[419097993,1774879834606,-2654.56840215,0.00013623,2]
[419097994,1774879834616,-500.0,0.00013698,2]
[419097995,1774879834626,-413.45001173,0.00013809,2]
[419097996,1774879834636,-2654.56840215,0.00013949,2]
[419097997,1774879834645,-3240.0,0.00013984,2]
[419097998,1774879834655,-300.0,0.00014,2]
[419097999,1774879834664,-257.8487,0.000142,12]
[419098000,1774879834674,-413.45001173,0.00014227,2]
[419098001,1774879834683,-2654.56840215,0.00014274,2]
[419098002,1774879834693,-3731.38354869,0.00014437,2]
[419098003,1774879834703,-500.0,0.00014469,2]
[419098004,1774879834713,-500.0,0.00014469,2]
[419098005,1774879834722,-500.0,0.00014469,2]
[419098006,1774879834732,-500.0,0.00014469,2]
[419098007,1774879834741,-500.0,0.00014469,2]
[419098008,1774879834751,-500.0,0.00014469,2]
[419098009,1774879834761,-500.0,0.00014469,2]
[419098010,1774879834771,-500.0,0.00014469,2]
[419098011,1774879834781,-500.0,0.00014469,2]
[419098012,1774879834791,-500.0,0.00014469,2]
[419098013,1774879834801,-500.0,0.00014469,2]
[419098014,1774879834811,-500.0,0.00014469,2]
[419098015,1774879834821,-500.0,0.00014469,2]
[419098016,1774879834831,-500.0,0.00014469,2]
[419098017,1774879834841,-500.0,0.00014469,2]
[419098018,1774879834851,-500.0,0.00014469,2]
[419098019,1774879834860,-500.0,0.00014469,2]
[419098020,1774879834870,-500.0,0.00014469,2]
[419098021,1774879834879,-500.0,0.00014469,2]
[419098022,1774879834889,-283.37750517,0.00014469,2]
[419098023,1774879834898,-542.83228243,0.00014469,2]
[419098024,1774879834907,-9999.99,0.00014504,2]
[419098025,1774879834917,-9999.99,0.00014504,2]
[419098026,1774879834926,-4999.99,0.00014504,2]
[419098027,1774879834936,-299.99,0.00014504,2]
[419098028,1774879834946,-150.99,0.00014504,2]
[419098029,1774879834956,-1570.0,0.00014504,2]
[419098030,1774879834965,-9999.99,0.00014504,2]
[419098031,1774879834975,-32317.74,0.00014504,2]
[419098032,1774879834984,-2654.56840215,0.00014599,2]
[419098033,1774879834993,-2000.0,0.00014621,2]
[419098034,1774879835003,-413.45001173,0.00014646,2]
[419098035,1774879835012,-178.91,0.00014762,2]
[419098036,1774879835022,-1000.0,0.00014801,2]
[419098037,1774879835033,-228.63,0.00014804,2]
[419098038,1774879835042,-2654.56840215,0.00014924,2]
[419098039,1774879835051,-310.97310154,0.00015,2]
[419098040,1774879835062,-413.45001173,0.00015064,2]
[419098041,1774879835072,-2468.0,0.00015194,2]
[419098042,1774879835082,-6014.0,0.00015194,2]
[419098043,1774879835091,-2070.8800608,0.00015199,2]
[419098044,1774879835101,-500.0,0.00015199,2]
[419098045,1774879835110,-151.0,0.00015199,2]
[419098046,1774879835119,-174.61919141,0.00015199,2]
[419098047,1774879835129,-2654.56840215,0.0001525,2]
[419098048,1774879835138,-778.75,0.0001527,2]
[419098049,1774879835148,-999.26,0.00015284,2]
[419098050,1774879835157,-173.382925,0.00015307,7]
[419098051,1774879835166,-338.44613409,0.00015373,2]
[419098052,1774879835175,-273.57,0.00015385,2]
[419098053,1774879835184,-2901.1,0.00015471,2]
[419098054,1774879835194,-413.45001173,0.00015482,2]
[419098055,1774879835205,-4000.0,0.00015507,2]
[419098056,1774879835214,-228.63,0.00015545,2]
[419098057,1774879835224,-2654.56840215,0.00015575,2]
[419098058,1774879835233,-184.248139,0.00015582,7]
[419098059,1774879835242,-227.482688,0.00015582,7]
[419098060,1774879835252,-338.0663,0.000156,17]
[419098061,1774879835261,-621.0,0.00015619,2]
[419098062,1774879835271,-3518.0,0.00015619,2]
[419098063,1774879835281,-1045.0,0.00015619,2]
[419098064,1774879835290,-1346.0,0.00015619,2]
[419098065,1774879835300,-1262.0,0.00015619,2]
[419098066,1774879835310,-925.0,0.00015619,2]
[419098067,1774879835319,-1216.0,0.00015619,2]
[419098068,1774879835328,-160.0,0.00015653,7]
[419098069,1774879835338,-1256.31086143,0.00015679,2]
[419098070,1774879835348,-160.0,0.0001568,7]
[419098071,1774879835357,-193.551923,0.0001568,7]
[419098072,1774879835366,-160.0,0.0001568,7]
[419098073,1774879835376,-331.637476,0.0001568,7]
[419098074,1774879835385,-223.886974,0.0001568,7]
[419098075,1774879835395,-181.08010149,0.00015747,2]
[419098076,1774879835405,-500.0,0.00015872,2]
[419098077,1774879835415,-200.0,0.00015872,2]
[419098078,1774879835426,-151.02044319,0.0001589,2]
[419098079,1774879835435,-4000.0,0.00015895,2]
[419098080,1774879835445,-306.0,0.000159,2]
[419098081,1774879835455,-1000.0,0.000159,2]
[419098082,1774879835464,-413.45001173,0.000159,2]
[419098083,1774879835474,-2342.98469337,0.000159,2]
[419098084,1774879835483,-360.65711116,0.000159,2]
[419098085,1774879835493,-2654.56840215,0.000159,2]
[419098086,1774879835503,-503.38259227,0.000159,2]
[419098087,1774879835513,-3731.38354869,0.000159,2]
[419098088,1774879835522,-312.0,0.000159,2]
[419098089,1774879835532,-596.97914606,0.000159,2]
[419098090,1774879835541,-15750.10951523,0.000159,2]
[419098091,1774879835551,-168.0,0.00015959,2]
[419098092,1774879835561,-13435.0,0.00015973,2]
[419098093,1774879835571,-500.0,0.00015973,2]
[419098094,1774879835580,-500.0,0.00015973,2]
[419098095,1774879835590,-500.0,0.00015973,2]
[419098096,1774879835599,-502.3938553,0.00015973,2]
[419098097,1774879835609,-418.05622523,0.00015973,2]
[419098098,1774879835618,-500.70153886,0.00015973,2]
[419098099,1774879835628,-500.0,0.00015973,2]
[419098100,1774879835637,-500.0,0.00015973,2]
[419098101,1774879835646,-332.58486862,0.00015973,2]
[419098102,1774879835655,-502.46451115,0.00015973,2]
[419098103,1774879835665,-500.0,0.00015973,2]
[419098104,1774879835674,-500.0,0.00015973,2]
[419098105,1774879835684,-500.0,0.00015973,2]
[419098106,1774879835693,-500.0,0.00015973,2]
[419098107,1774879835703,-500.0,0.00015973,2]
[419098108,1774879835713,-178.91,0.00015981,2]
[419098109,1774879835722,-289.67179333,0.0001599,2]
[419098110,1774879835731,-1153.5676461,0.00015995,2]
[419098111,1774879835741,-151.0,0.00015997,2]
[419098112,1774879835751,-362.75779355,0.00015999,2]
[419098113,1774879835761,-500.0,0.00015999,2]
[419098114,1774879835770,-487.59493799,0.00015999,2]
[419098115,1774879835779,-500.0,0.00015999,2]
[419098116,1774879835789,-500.0,0.00015999,2]
[419098117,1774879835798,-358.0074618,0.00015999,2]
[419098118,1774879835808,-300.0,0.00015999,2]
[419098119,1774879835818,-167.97104622,0.00015999,2]
[419098120,1774879835827,-170.10582116,0.00015999,2]
[419098121,1774879835837,-500.0,0.00015999,2]
[419098122,1774879835846,-500.0,0.00015999,2]
[419098123,1774879835856,-500.0,0.00015999,2]
[419098124,1774879835866,-500.0,0.00015999,2]
[419098125,1774879835875,-540.27498652,0.00015999,2]
[419098126,1774879835885,-500.0,0.00015999,2]
[419098127,1774879835895,-500.0,0.00015999,2]
[419098128,1774879835904,-500.0,0.00015999,2]
[419098129,1774879835914,-500.0,0.00015999,2]
[419098130,1774879835924,-20503.6802596,0.00016,2]
[419098131,1774879835939,-1606.72727158,0.00016,2]
[419098132,1774879835952,-1998.50742485,0.00016,2]
[419098133,1774879835962,-3640.59180879,0.00016,2]
[419098134,1774879835982,-368.50590246,0.00016,2]
[419098135,1774879836114,-160.0,0.00014357,2]
[419098136,1774879836124,-11964.90390716,0.00016,2]
[419098137,1774879836135,-748.00966555,0.00016,2]
[419098138,1774879836148,-308.29206342,0.00016,2]
[419098139,1774879836160,-456.50541151,0.00016,2]
[419098140,1774879836186,-927.69623708,0.00016,2]
[419098141,1774879836206,-1127.54480993,0.00016,2]
[419098142,1774879836217,-73492.92027231,0.00016,2]
[419098143,1774879836229,-138955.36451476,0.00016,2]
[419098144,1774879836253,-346.84803172,0.00016,2]
[419098145,1774879836271,-36205.95262832,0.00016,2]
[419098146,1774879836280,-42565.50681877,0.00016,2]
[419098147,1774879836292,-8015.04313017,0.00016,2]
[419098156,1774879837594,-156.39595107,0.0001,2]
[419098157,1774879837604,-4998.76106193,0.00016,2]
[419098158,1774879837615,-4997.812,0.00016,2]
[419098159,1774879837647,-3637.60020483,0.00016,2]
[419098160,1774879837659,-695.37810896,0.00016,2]
[419098161,1774879837671,-1998.60501288,0.00016,2]
[419098162,1774879837682,-3106.690277,0.00016,2]
[419098163,1774879837706,-615084.89286811,0.00016,2]
[419098164,1774879837758,-1366.3012,0.00016,2]
[419098165,1774879837769,-17554.57430046,0.00016,2]
[419098166,1774879837866,-2773.11623008,0.00016,2]
[419098167,1774879837878,-1028.42167164,0.00016,2]
[419098168,1774879837975,-1407.27216267,0.00016,2]
[419098169,1774879838028,-5580.23600097,0.00016,2]
[419098170,1774879838040,-1364.88945289,0.00016,2]
[419098171,1774879838051,-1554.53461667,0.00016,2]
[419098176,1774879841915,-705.89297524,0.00015194,2]
[419098177,1774879841927,-415.0,0.00015194,2]
[419098224,1774879844268,-1153.567646,0.00015194,2]
[419098225,1774879844326,-1491.53937876,0.00015194,2]
[419098226,1774879844337,-2059.86816163,0.000159,2]
[419098227,1774879844349,-555631.91865865,0.00016,2]
[419098228,1774879844361,-20361.14822994,0.00016,2]
[419098231,1774879845521,-4296.75088854,0.00016,2]
[419098232,1774879845792,-493.73149911,0.00016,2]
[419098233,1774879845844,-3450.51554435,0.00016,2]
[419098234,1774879845855,-36033.07617234,0.00016,2]
[419098235,1774879846017,-2672.86279501,0.00016,2]
[419098255,1774880851433,-283.32,9.322e-05,2]
[419098256,1774880851456,-107.65611496,0.0001,2]
[419098261,1774880948091,-290.76827626,9.122e-05,2]
[419098262,1774880952106,-1009.23172374,9.122e-05,2]
[419098263,1774880952129,-402.42462544,9.956e-05,2]
[419098266,1774881031627,-597.57537456,9.956e-05,2]
[419098267,1774881031637,-260.0,9.956e-05,2]
[419098268,1774881031647,-208.0,9.989e-05,2]
[419098269,1774881031656,-208.0,9.989e-05,2]
[419098270,1774881031666,-208.0,9.989e-05,2]
[419098271,1774881031676,-173.42281507,9.989e-05,2]
[419098272,1774881031690,-34.57718493,9.989e-05,2]
[419098273,1774881031700,-208.0,9.989e-05,2]
[419098274,1774881031711,-208.0,9.989e-05,2]
[419098275,1774881031721,-208.0,9.989e-05,2]
[419098276,1774881031731,-208.0,9.989e-05,2]
[419098277,1774881031742,-208.0,9.989e-05,2]
[419098278,1774881031752,-418.94693915,0.0001,2]
[419098279,1774881031762,-310.22,0.00010221,2]
[419098280,1774881031772,-250.0,0.0001045,2]
[419098281,1774881031783,-250.0,0.00010777,2]
[419098282,1774881031793,-809.68,0.000108,2]
[419098283,1774881031803,-166.31698668,0.00010897,2]
[419098284,1774881031813,-1200.0,0.00010997,2]
[419098285,1774881031823,-300.0,0.00010999,2]
[419098286,1774881031832,-300.0,0.00010999,2]
[419098287,1774881031843,-300.0,0.00010999,2]
[419098288,1774881031852,-150.0,0.00011,2]
[419098289,1774881031863,-2168.9323359,0.00011,2]
[419098290,1774881031873,-250.0,0.00011,2]
[419098291,1774881031883,-927.27,0.00011062,2]
[419098292,1774881031893,-5865.7,0.00011176,2]
[419098293,1774881031904,-1500.0,0.00011412,2]
[419098294,1774881031914,-1423.35,0.00011507,2]
[419098295,1774881031924,-669.81511754,0.00011694,2]
[419098296,1774881031935,-150.0,0.00011838,2]
[419098297,1774881031944,-4578.77,0.00011839,2]
[419098298,1774881031954,-164.63,0.0001186,2]
[419098299,1774881031966,-166.31698667,0.00011871,2]
[419098300,1774881031976,-1680.0,0.00012097,2]
[419098301,1774881031986,-196.6362,0.000124,7]
[419098302,1774881031996,-200.0,0.00012401,2]
[419098303,1774881032005,-500.0,0.00012536,2]
[419098304,1774881032015,-166.31698667,0.00012844,2]
[419098305,1774881032024,-1294.43218886,0.00012844,2]
[419098306,1774881032036,-175.73439252,0.00012899,2]
[419098307,1774881032047,-289.97090711,0.000129,2]
[419098308,1774881032057,-202.3310111,0.000129,2]
[419098309,1774881032067,-152.67624059,0.000129,2]
[419098310,1774881032077,-500.0,0.0001293,2]
[419098311,1774881032087,-500.0,0.0001293,2]
[419098312,1774881032097,-500.0,0.0001293,2]
[419098313,1774881032107,-500.0,0.0001293,2]
[419098314,1774881032117,-500.0,0.0001293,2]
[419098315,1774881032126,-500.0,0.0001293,2]
[419098316,1774881032136,-500.0,0.0001293,2]
[419098317,1774881032145,-151.0,0.0001293,2]
[419098318,1774881032155,-500.0,0.0001293,2]
[419098319,1774881032165,-151.0,0.0001293,2]
[419098320,1774881032175,-500.0,0.0001293,2]
[419098321,1774881032185,-151.0,0.0001293,2]
[419098322,1774881032195,-500.0,0.0001293,2]
[419098323,1774881032204,-151.0,0.0001293,2]
[419098324,1774881032214,-500.0,0.0001293,2]
[419098325,1774881032224,-151.0,0.0001293,2]
[419098326,1774881032234,-151.0,0.0001293,2]
[419098327,1774881032243,-151.0,0.0001293,2]
[419098328,1774881032253,-151.0,0.0001293,2]
[419098329,1774881032263,-151.0,0.0001293,2]
[419098330,1774881032272,-151.0,0.0001293,2]
[419098331,1774881032282,-151.0,0.0001293,2]
[419098332,1774881032292,-151.0,0.0001293,2]
[419098333,1774881032302,-151.0,0.0001293,2]
[419098334,1774881032312,-151.0,0.0001293,2]
[419098335,1774881032322,-1147.103,0.00012944,2]
[419098336,1774881032332,-171.631,0.00012944,2]
[419098337,1774881032341,-500.0,0.00012944,2]
[419098338,1774881032351,-500.12779556,0.00012944,2]
[419098339,1774881032360,-500.0,0.00012944,2]
[419098340,1774881032370,-500.0,0.00012944,2]
[419098341,1774881032380,-500.82839147,0.00012944,2]
[419098342,1774881032390,-500.0,0.00012944,2]
[419098343,1774881032400,-500.0,0.00012944,2]
[419098344,1774881032409,-332.43025267,0.00012944,2]
[419098345,1774881032419,-500.12556099,0.00012944,2]
[419098346,1774881032428,-500.0,0.00012944,2]
[419098347,1774881032438,-180.48159571,0.00012944,2]
[419098348,1774881032448,-411.0972569,0.00012944,2]
[419098349,1774881032457,-500.0,0.00012944,2]
[419098350,1774881032467,-500.0,0.00012944,2]
[419098351,1774881032477,-500.0,0.00012944,2]
[419098352,1774881032487,-500.0,0.00012944,2]
[419098353,1774881032496,-500.0,0.00012944,2]
[419098354,1774881032506,-153.53246369,0.00012944,2]
[419098355,1774881032516,-500.0,0.00012944,2]
[419098356,1774881032526,-371.64542268,0.00012944,2]
[419098357,1774881032536,-1701.12306826,0.00012944,2]
[419098358,1774881032546,-1701.12306826,0.00012944,2]
[419098359,1774881032557,-1701.12306826,0.00012944,2]
[419098360,1774881032566,-1701.12306826,0.00012944,2]
[419098361,1774881032576,-1701.12306826,0.00012944,2]
[419098362,1774881032585,-1701.12306826,0.00012944,2]
[419098363,1774881032596,-1701.12306826,0.00012944,2]
[419098364,1774881032606,-1701.12306826,0.00012944,2]
[419098365,1774881032616,-1701.12306826,0.00012944,2]